[Event "Titled Tuesday Blitz August 17 2021"]
[White "Zaksaite, Salomeja"]
[Black "Rakhmanov, Aleksandr"]
[WhiteFideId "12801496"]
[BlackFideId "4173708"]
[WhiteElo "2002"]
[BlackElo "2498"]
[Result "1/2-1/2"]
[Round "02"]
[TimeControl "180+1"]
[Date "2021.08.18"]
[WhiteClock "0:00:05"]
[BlackClock "0:00:23"]

1. e4 {[%clk 0:03:00]}  c5 {[%clk 0:02:49]} 2. Nf3 {[%clk 0:02:59]}  Nf6 {[%clk 0:02:49]} 3. Nc3 {[%clk 0:02:58]}  d5 {[%clk 0:02:48]} 4. exd5 {[%clk 0:02:57]}  Nxd5 {[%clk 0:02:47]} 5. Bb5+ {[%clk 0:02:57]}  Bd7 {[%clk 0:02:47]} 6. Qe2 {[%clk 0:02:55]}  Nb4 {[%clk 0:02:46]} 7. Bxd7+ {[%clk 0:02:50]}  Qxd7 {[%clk 0:02:43]} 8. d3 {[%clk 0:02:51]}  N8c6 {[%clk 0:02:42]} 9. a3 {[%clk 0:02:51]}  Nd5 {[%clk 0:02:41]} 10. Ne4 {[%clk 0:02:41]}  e6 {[%clk 0:02:34]} 11. Bd2 {[%clk 0:02:42]}  Be7 {[%clk 0:02:33]} 12. O-O {[%clk 0:02:31]}  O-O {[%clk 0:02:30]} 13. c4 {[%clk 0:02:31]}  Nf6 {[%clk 0:02:27]} 14. Bc3 {[%clk 0:02:26]}  Rfd8 {[%clk 0:02:23]} 15. Nxf6+ {[%clk 0:02:22]}  Bxf6 {[%clk 0:02:23]} 16. Bxf6 {[%clk 0:02:21]}  gxf6 {[%clk 0:02:24]} 17. Rad1 {[%clk 0:02:16]}  Qd6 {[%clk 0:02:11]} 18. Rfe1 {[%clk 0:01:55]}  Rd7 {[%clk 0:02:11]} 19. Rd2 {[%clk 0:01:48]}  Rad8 {[%clk 0:02:11]} 20. Red1 {[%clk 0:01:48]}  b6 {[%clk 0:02:07]} 21. h3 {[%clk 0:01:47]}  Qf4 {[%clk 0:02:03]} 22. Qe3 {[%clk 0:01:45]}  Qf5 {[%clk 0:01:55]} 23. d4 {[%clk 0:01:24]}  Kg7 {[%clk 0:01:36]} 24. dxc5 {[%clk 0:01:17]}  Rxd2 {[%clk 0:01:35]} 25. Rxd2 {[%clk 0:01:15]}  Rxd2 {[%clk 0:01:35]} 26. Nxd2 {[%clk 0:01:11]}  bxc5 {[%clk 0:01:13]} 27. Ne4 {[%clk 0:00:56]}  Nd4 {[%clk 0:00:50]} 28. b4 {[%clk 0:00:50]}  Nc2 {[%clk 0:00:43]} 29. Qg3+ {[%clk 0:00:50]}  Kf8 {[%clk 0:00:38]} 30. Nxc5 {[%clk 0:00:47]}  e5 {[%clk 0:00:36]} 31. b5 {[%clk 0:00:15]}  Nd4 {[%clk 0:00:34]} 32. Qg4 {[%clk 0:00:10]}  Qb1+ {[%clk 0:00:30]} 33. Kh2 {[%clk 0:00:10]}  f5 {[%clk 0:00:29]} 34. Qg5 {[%clk 0:00:08]}  Ne2 {[%clk 0:00:20]} 35. Qd8+ {[%clk 0:00:07]}  Kg7 {[%clk 0:00:20]} 36. Qg5+ {[%clk 0:00:06]}  Kf8 {[%clk 0:00:21]} 37. Qd8+ {[%clk 0:00:05]}  Kg7 {[%clk 0:00:22]} 38. Qg5+ {[%clk 0:00:05]}  Kf8 {[%clk 0:00:23]} 1/2-1/2


[Site "https://www.chess.com"]

[Event "Titled Tuesday Blitz August 17 2021"]
[White "gurelediz"]
[Black "Koellner, Ruben Gideon"]
[BlackFideId "12993093"]
[WhiteElo "2711"]
[BlackElo "2488"]
[Result "0-1"]
[Round "02"]
[TimeControl "180+1"]
[Date "2021.08.17"]
[WhiteClock "0:00:04"]
[BlackClock "0:00:07"]

1. e4 {[%clk 0:03:00]}  d6 {[%clk 0:03:00]} 2. d4 {[%clk 0:03:00]}  Nf6 {[%clk 0:02:59]} 3. Nc3 {[%clk 0:03:00]}  e5 {[%clk 0:02:59]} 4. dxe5 {[%clk 0:03:01]}  dxe5 {[%clk 0:03:00]} 5. Qxd8+ {[%clk 0:03:02]}  Kxd8 {[%clk 0:03:00]} 6. Bc4 {[%clk 0:03:03]}  Be6 {[%clk 0:03:00]} 7. Bxe6 {[%clk 0:03:03]}  fxe6 {[%clk 0:03:01]} 8. f3 {[%clk 0:03:03]}  Bd6 {[%clk 0:03:01]} 9. Nh3 {[%clk 0:03:03]}  Ke7 {[%clk 0:03:01]} 10. Be3 {[%clk 0:03:03]}  a6 {[%clk 0:03:02]} 11. O-O-O {[%clk 0:03:02]}  Nbd7 {[%clk 0:03:01]} 12. Nf2 {[%clk 0:03:02]}  b5 {[%clk 0:03:01]} 13. Nd3 {[%clk 0:03:01]}  Rhb8 {[%clk 0:03:00]} 14. Ne2 {[%clk 0:02:59]}  c5 {[%clk 0:02:58]} 15. f4 {[%clk 0:02:51]}  c4 {[%clk 0:02:47]} 16. fxe5 {[%clk 0:02:49]}  Nxe5 {[%clk 0:02:47]} 17. Nxe5 {[%clk 0:02:22]}  Bxe5 {[%clk 0:02:48]} 18. Bc5+ {[%clk 0:02:15]}  Kf7 {[%clk 0:02:24]} 19. Bd6 {[%clk 0:01:49]}  Bxd6 {[%clk 0:01:56]} 20. Rxd6 {[%clk 0:01:50]}  Nxe4 {[%clk 0:01:33]} 21. Rd7+ {[%clk 0:01:48]}  Kg8 {[%clk 0:01:33]} 22. Nf4 {[%clk 0:01:35]}  Nc5 {[%clk 0:01:07]} 23. Re7 {[%clk 0:01:26]}  Re8 {[%clk 0:01:06]} 24. Rc7 {[%clk 0:01:25]}  Rac8 {[%clk 0:01:05]} 25. Ra7 {[%clk 0:01:25]}  Rf8 {[%clk 0:00:46]} 26. g3 {[%clk 0:01:08]}  Rf7 {[%clk 0:00:43]} 27. Rxf7 {[%clk 0:01:07]}  Kxf7 {[%clk 0:00:44]} 28. Rf1 {[%clk 0:01:06]}  Ke7 {[%clk 0:00:38]} 29. Re1 {[%clk 0:01:07]}  Kd6 {[%clk 0:00:25]} 30. Rd1+ {[%clk 0:01:06]}  Kc6 {[%clk 0:00:25]} 31. Re1 {[%clk 0:01:05]}  Re8 {[%clk 0:00:22]} 32. Nh5 {[%clk 0:00:56]}  Re7 {[%clk 0:00:19]} 33. g4 {[%clk 0:00:31]}  e5 {[%clk 0:00:19]} 34. Ng3 {[%clk 0:00:23]}  g6 {[%clk 0:00:20]} 35. Rf1 {[%clk 0:00:24]}  e4 {[%clk 0:00:18]} 36. Kd2 {[%clk 0:00:20]}  Kd5 {[%clk 0:00:17]} 37. Ke3 {[%clk 0:00:20]}  Ke5 {[%clk 0:00:15]} 38. Rf8 {[%clk 0:00:14]}  Nd7 {[%clk 0:00:11]} 39. Rc8 {[%clk 0:00:08]}  Nf6 {[%clk 0:00:09]} 40. h3 {[%clk 0:00:06]}  Nd5+ {[%clk 0:00:09]} 41. Ke2 {[%clk 0:00:07]}  Nf4+ {[%clk 0:00:08]} 42. Ke3 {[%clk 0:00:06]}  Nd5+ {[%clk 0:00:09]} 43. Ke2 {[%clk 0:00:07]}  Rf7 {[%clk 0:00:06]} 44. Re8+ {[%clk 0:00:06]}  Ne7 {[%clk 0:00:06]} 45. Ra8 {[%clk 0:00:04]}  Rf3 {[%clk 0:00:04]} 46. Nf1 {[%clk 0:00:03]}  Nd5 {[%clk 0:00:04]} 47. Rxa6 {[%clk 0:00:02]}  Nf4+ {[%clk 0:00:04]} 48. Ke1 {[%clk 0:00:03]}  Ng2+ {[%clk 0:00:04]} 49. Ke2 {[%clk 0:00:03]}  Nf4+ {[%clk 0:00:05]} 50. Ke1 {[%clk 0:00:03]}  Nxh3 {[%clk 0:00:05]} 51. Ra5 {[%clk 0:00:03]}  Kf4 {[%clk 0:00:05]} 52. Rxb5 {[%clk 0:00:03]}  Ng5 {[%clk 0:00:05]} 53. a4 {[%clk 0:00:03]}  h5 {[%clk 0:00:04]} 54. gxh5 {[%clk 0:00:02]}  gxh5 {[%clk 0:00:05]} 55. a5 {[%clk 0:00:03]}  e3 {[%clk 0:00:05]} 56. a6 {[%clk 0:00:03]}  Rf2 {[%clk 0:00:05]} 57. Rxg5 {[%clk 0:00:01]}  Kxg5 {[%clk 0:00:05]} 58. Nxe3 {[%clk 0:00:01]}  Rf8 {[%clk 0:00:06]} 59. Nxc4 {[%clk 0:00:02]}  Ra8 {[%clk 0:00:05]} 60. b4 {[%clk 0:00:02]}  Rxa6 {[%clk 0:00:05]} 61. b5 {[%clk 0:00:03]}  Ra1+ {[%clk 0:00:05]} 62. Kd2 {[%clk 0:00:03]}  h4 {[%clk 0:00:06]} 63. b6 {[%clk 0:00:03]}  Rb1 {[%clk 0:00:06]} 64. Ne5 {[%clk 0:00:01]}  h3 {[%clk 0:00:05]} 65. c4 {[%clk 0:00:02]}  Kf4 {[%clk 0:00:04]} 66. Nd3+ {[%clk 0:00:02]}  Kg3 {[%clk 0:00:04]} 67. c5 {[%clk 0:00:02]}  h2 {[%clk 0:00:04]} 68. Nf2 {[%clk 0:00:02]}  Kxf2 {[%clk 0:00:04]} 69. c6 {[%clk 0:00:02]}  h1=Q {[%clk 0:00:05]} 70. c7 {[%clk 0:00:03]}  Qe1+ {[%clk 0:00:05]} 71. Kd3 {[%clk 0:00:03]}  Qd1+ {[%clk 0:00:05]} 72. Ke4 {[%clk 0:00:03]}  Qe2+ {[%clk 0:00:04]} 73. Kd5 {[%clk 0:00:04]}  Qb5+ {[%clk 0:00:04]} 74. Ke4 {[%clk 0:00:04]}  Qxb6 {[%clk 0:00:05]} 75. c8=Q {[%clk 0:00:04]}  Qe3+ {[%clk 0:00:04]} 76. Kd5 {[%clk 0:00:03]}  Rd1+ {[%clk 0:00:03]} 77. Kc6 {[%clk 0:00:03]}  Rc1+ {[%clk 0:00:04]} 78. Kb7 {[%clk 0:00:03]}  Rxc8 {[%clk 0:00:05]} 79. Ka6 {[%clk 0:00:02]}  Kf3 {[%clk 0:00:06]} 80. Kb7 {[%clk 0:00:02]}  Qe7+ {[%clk 0:00:05]} 81. Ka6 {[%clk 0:00:03]}  Rd8 {[%clk 0:00:05]} 82. Kb5 {[%clk 0:00:03]}  Rd6 {[%clk 0:00:06]} 83. Kc4 {[%clk 0:00:04]}  Qe5 {[%clk 0:00:07]} 84. Kb3 {[%clk 0:00:05]}  Rd4 {[%clk 0:00:08]} 85. Kb2 {[%clk 0:00:03]}  Qe2+ {[%clk 0:00:08]} 86. Kb1 {[%clk 0:00:04]}  Rd1# {[%clk 0:00:07]} 0-1


[Site "https://www.chess.com"]

[Event "Titled Tuesday Blitz August 17 2021"]
[White "Alavi, Sayed Javad"]
[Black "Gerzhoy, Leonid"]
[WhiteFideId "12500607"]
[BlackFideId "2806126"]
[WhiteElo "2495"]
[BlackElo "2523"]
[Result "0-1"]
[Round "03"]
[TimeControl "180+1"]
[Date "2021.08.17"]
[WhiteClock "0:02:21"]
[BlackClock "0:02:04"]

1. Nf3 {[%clk 0:03:00]}  Nf6 {[%clk 0:02:59]} 2. c4 {[%clk 0:03:00]}  d6 {[%clk 0:02:59]} 3. d4 {[%clk 0:02:59]}  Nbd7 {[%clk 0:02:58]} 4. Nc3 {[%clk 0:02:58]}  e5 {[%clk 0:02:57]} 5. e4 {[%clk 0:02:58]}  Be7 {[%clk 0:02:57]} 6. Be2 {[%clk 0:02:58]}  O-O {[%clk 0:02:57]} 7. O-O {[%clk 0:02:59]}  c6 {[%clk 0:02:56]} 8. Qc2 {[%clk 0:02:59]}  a6 {[%clk 0:02:56]} 9. Rd1 {[%clk 0:02:59]}  Qc7 {[%clk 0:02:56]} 10. b4 {[%clk 0:02:53]}  Re8 {[%clk 0:02:49]} 11. a3 {[%clk 0:02:47]}  Nf8 {[%clk 0:02:47]} 12. h3 {[%clk 0:02:42]}  Ng6 {[%clk 0:02:38]} 13. Be3 {[%clk 0:02:36]}  Bf8 {[%clk 0:02:36]} 14. Rac1 {[%clk 0:02:31]}  Nf4 {[%clk 0:02:04]} 15. Bxf4 {[%clk 0:02:21]} 0-1


[Site "https://www.chess.com"]

[Event "Titled Tuesday Blitz August 17 2021"]
[White "Aslanov, Umid"]
[Black "Yaran, Siar"]
[WhiteFideId "13412620"]
[BlackFideId "6323006"]
[WhiteElo "1796"]
[BlackElo "1977"]
[Result "0-1"]
[Round "03"]
[TimeControl "180+1"]
[Date "2021.08.18"]
[WhiteClock "0:00:27"]
[BlackClock "0:00:21"]

1. e4 {[%clk 0:03:00]}  e5 {[%clk 0:02:58]} 2. Nf3 {[%clk 0:03:01]}  Nc6 {[%clk 0:02:58]} 3. Bc4 {[%clk 0:03:01]}  Bc5 {[%clk 0:02:58]} 4. c3 {[%clk 0:03:01]}  Nf6 {[%clk 0:02:58]} 5. d3 {[%clk 0:03:02]}  a6 {[%clk 0:02:58]} 6. a4 {[%clk 0:03:01]}  Ba7 {[%clk 0:02:57]} 7. O-O {[%clk 0:03:01]}  d6 {[%clk 0:02:57]} 8. Nbd2 {[%clk 0:03:02]}  O-O {[%clk 0:02:57]} 9. h3 {[%clk 0:03:02]}  Re8 {[%clk 0:02:58]} 10. Re1 {[%clk 0:02:57]}  Be6 {[%clk 0:02:52]} 11. Bb3 {[%clk 0:02:53]}  h6 {[%clk 0:02:51]} 12. Bc2 {[%clk 0:02:53]}  d5 {[%clk 0:02:51]} 13. Qe2 {[%clk 0:02:52]}  Qd7 {[%clk 0:02:49]} 14. Nf1 {[%clk 0:02:49]}  Rad8 {[%clk 0:02:46]} 15. Ng3 {[%clk 0:02:42]}  Qc8 {[%clk 0:02:13]} 16. Nh4 {[%clk 0:02:38]}  dxe4 {[%clk 0:01:54]} 17. dxe4 {[%clk 0:02:39]}  Ne7 {[%clk 0:01:52]} 18. Qf3 {[%clk 0:02:36]}  Nh7 {[%clk 0:01:42]} 19. Nh5 {[%clk 0:02:31]}  Ng5 {[%clk 0:01:13]} 20. Qg3 {[%clk 0:02:16]}  f6 {[%clk 0:01:12]} 21. Nf3 {[%clk 0:01:50]}  Bf7 {[%clk 0:01:10]} 22. Nxg7 {[%clk 0:01:45]}  Kxg7 {[%clk 0:01:09]} 23. h4 {[%clk 0:01:43]}  Ng6 {[%clk 0:01:08]} 24. hxg5 {[%clk 0:01:43]}  hxg5 {[%clk 0:01:08]} 25. Be3 {[%clk 0:01:29]}  Bxe3 {[%clk 0:01:06]} 26. Rxe3 {[%clk 0:01:27]}  Rh8 {[%clk 0:01:00]} 27. Nh2 {[%clk 0:01:24]}  Rh4 {[%clk 0:00:58]} 28. Rae1 {[%clk 0:00:53]}  Rdh8 {[%clk 0:00:54]} 29. Rf3 {[%clk 0:00:49]}  Nf4 {[%clk 0:00:49]} 30. Rxf4 {[%clk 0:00:47]}  exf4 {[%clk 0:00:48]} 31. Qd3 {[%clk 0:00:44]}  Rxh2 {[%clk 0:00:46]} 32. f3 {[%clk 0:00:45]}  Rh1+ {[%clk 0:00:31]} 33. Kf2 {[%clk 0:00:45]}  Rxe1 {[%clk 0:00:32]} 34. Kxe1 {[%clk 0:00:44]}  Rd8 {[%clk 0:00:32]} 35. Qe2 {[%clk 0:00:41]}  Qe6 {[%clk 0:00:32]} 36. Kf2 {[%clk 0:00:37]}  Qb6+ {[%clk 0:00:31]} 37. Kf1 {[%clk 0:00:36]}  Rh8 {[%clk 0:00:30]} 38. Qd3 {[%clk 0:00:34]}  Rh1+ {[%clk 0:00:27]} 39. Ke2 {[%clk 0:00:35]}  Rg1 {[%clk 0:00:20]} 40. e5 {[%clk 0:00:33]}  Rxg2+ {[%clk 0:00:20]} 41. Ke1 {[%clk 0:00:28]}  Qg1+ {[%clk 0:00:20]} 42. Qf1 {[%clk 0:00:27]}  Qxf1+ {[%clk 0:00:20]} 43. Kxf1 {[%clk 0:00:27]}  Rxc2 {[%clk 0:00:21]} 0-1


[Site "https://www.chess.com"]

[Event "Titled Tuesday Blitz August 17 2021"]
[White "Atabayev, Maksat"]
[Black "Hamley, Ryan"]
[WhiteFideId "14001101"]
[BlackFideId "30959497"]
[WhiteElo "2457"]
[BlackElo "2409"]
[Result "1-0"]
[Round "03"]
[TimeControl "180+1"]
[Date "2021.08.18"]
[WhiteClock "0:00:17"]
[BlackClock "0:00:03"]

1. e4 {[%clk 0:03:00]}  e5 {[%clk 0:02:59]} 2. Nf3 {[%clk 0:03:00]}  Nc6 {[%clk 0:02:59]} 3. Nc3 {[%clk 0:03:00]}  Nf6 {[%clk 0:02:57]} 4. Be2 {[%clk 0:03:00]}  Bc5 {[%clk 0:02:56]} 5. Nxe5 {[%clk 0:03:01]}  Nxe5 {[%clk 0:02:52]} 6. d4 {[%clk 0:03:01]}  Bd6 {[%clk 0:02:53]} 7. dxe5 {[%clk 0:03:01]}  Bxe5 {[%clk 0:02:52]} 8. Nb5 {[%clk 0:03:01]}  c6 {[%clk 0:02:43]} 9. Nd6+ {[%clk 0:03:00]}  Bxd6 {[%clk 0:02:42]} 10. Qxd6 {[%clk 0:03:01]}  Qe7 {[%clk 0:02:43]} 11. e5 {[%clk 0:02:55]}  Qxd6 {[%clk 0:02:21]} 12. exd6 {[%clk 0:02:55]}  O-O {[%clk 0:02:22]} 13. c4 {[%clk 0:02:45]}  Re8 {[%clk 0:02:11]} 14. f3 {[%clk 0:02:44]}  Re6 {[%clk 0:01:57]} 15. Bf4 {[%clk 0:02:42]}  Ne8 {[%clk 0:01:57]} 16. Rd1 {[%clk 0:02:38]}  b6 {[%clk 0:01:56]} 17. Kf2 {[%clk 0:02:37]}  Bb7 {[%clk 0:01:55]} 18. Bd3 {[%clk 0:02:31]}  g6 {[%clk 0:01:48]} 19. Rhe1 {[%clk 0:02:18]}  Ng7 {[%clk 0:01:46]} 20. c5 {[%clk 0:02:11]}  bxc5 {[%clk 0:01:45]} 21. Bc4 {[%clk 0:02:11]}  Rxe1 {[%clk 0:01:41]} 22. Rxe1 {[%clk 0:02:12]}  Ne6 {[%clk 0:01:42]} 23. Bh6 {[%clk 0:01:44]}  a5 {[%clk 0:01:35]} 24. Re5 {[%clk 0:01:38]}  Ba6 {[%clk 0:01:33]} 25. Bxe6 {[%clk 0:01:32]}  fxe6 {[%clk 0:01:32]} 26. Rxc5 {[%clk 0:01:32]}  Bb5 {[%clk 0:01:28]} 27. a4 {[%clk 0:01:19]}  Bxa4 {[%clk 0:01:25]} 28. Rc4 {[%clk 0:01:20]}  Bb5 {[%clk 0:01:24]} 29. Rf4 {[%clk 0:01:20]}  Re8 {[%clk 0:01:16]} 30. Ke3 {[%clk 0:01:13]}  a4 {[%clk 0:01:03]} 31. Rf6 {[%clk 0:01:12]}  Bc4 {[%clk 0:00:56]} 32. Kd4 {[%clk 0:01:08]}  Bd5 {[%clk 0:00:56]} 33. Kc5 {[%clk 0:01:07]}  e5 {[%clk 0:00:53]} 34. Kb6 {[%clk 0:01:07]}  Be6 {[%clk 0:00:42]} 35. Kc7 {[%clk 0:01:05]}  c5 {[%clk 0:00:24]} 36. Rxe6 {[%clk 0:01:04]}  Rxe6 {[%clk 0:00:24]} 37. Kxd7 {[%clk 0:01:04]}  Kf7 {[%clk 0:00:24]} 38. Kc7 {[%clk 0:01:03]}  c4 {[%clk 0:00:16]} 39. d7 {[%clk 0:00:57]}  Re7 {[%clk 0:00:15]} 40. Kc6 {[%clk 0:00:54]}  Re6+ {[%clk 0:00:13]} 41. Kc5 {[%clk 0:00:52]}  Ke7 {[%clk 0:00:12]} 42. Kxc4 {[%clk 0:00:50]}  Kxd7 {[%clk 0:00:12]} 43. Kb4 {[%clk 0:00:50]}  Ra6 {[%clk 0:00:11]} 44. Ka3 {[%clk 0:00:49]}  Ke6 {[%clk 0:00:12]} 45. Bd2 {[%clk 0:00:49]}  Kd5 {[%clk 0:00:12]} 46. Bc3 {[%clk 0:00:49]}  e4 {[%clk 0:00:11]} 47. fxe4+ {[%clk 0:00:48]}  Kxe4 {[%clk 0:00:12]} 48. h4 {[%clk 0:00:47]}  Kf4 {[%clk 0:00:09]} 49. Be1 {[%clk 0:00:38]}  Ke3 {[%clk 0:00:08]} 50. g4 {[%clk 0:00:37]}  Kf3 {[%clk 0:00:07]} 51. g5 {[%clk 0:00:37]}  Re6 {[%clk 0:00:06]} 52. Bc3 {[%clk 0:00:30]}  Re4 {[%clk 0:00:01]} 53. Bb4 {[%clk 0:00:29]}  Rxh4 {[%clk 0:00:01]} 54. Kxa4 {[%clk 0:00:29]}  Rg4 {[%clk 0:00:02]} 55. Ka5 {[%clk 0:00:26]}  Rxg5+ {[%clk 0:00:03]} 56. Ka6 {[%clk 0:00:26]}  h5 {[%clk 0:00:03]} 57. Be7 {[%clk 0:00:22]}  Rf5 {[%clk 0:00:04]} 58. b4 {[%clk 0:00:20]}  g5 {[%clk 0:00:04]} 59. b5 {[%clk 0:00:20]}  g4 {[%clk 0:00:03]} 60. b6 {[%clk 0:00:20]}  Re5 {[%clk 0:00:01]} 61. b7 {[%clk 0:00:18]}  Re6+ {[%clk 0:00:02]} 62. Kb5 {[%clk 0:00:16]}  Re1 {[%clk 0:00:03]} 63. b8=Q {[%clk 0:00:15]}  Rb1+ {[%clk 0:00:03]} 64. Bb4 {[%clk 0:00:15]}  g3 {[%clk 0:00:03]} 65. Qf8+ {[%clk 0:00:16]}  Kg2 {[%clk 0:00:03]} 66. Qg7 {[%clk 0:00:16]}  Rf1 {[%clk 0:00:03]} 67. Qg5 {[%clk 0:00:16]}  Rf3 {[%clk 0:00:03]} 68. Qxh5 {[%clk 0:00:16]}  Kf2 {[%clk 0:00:03]} 69. Bc5+ {[%clk 0:00:16]}  Ke2 {[%clk 0:00:03]} 70. Qe5+ {[%clk 0:00:17]}  Kf1 {[%clk 0:00:03]} 71. Qa1+ {[%clk 0:00:16]}  Kg2 {[%clk 0:00:03]} 72. Qg1+ {[%clk 0:00:16]}  Kh3 {[%clk 0:00:03]} 73. Qh1+ {[%clk 0:00:17]}  Kg4 {[%clk 0:00:03]} 74. Qg2 {[%clk 0:00:17]} 1-0


[Site "https://www.chess.com"]

[Event "Titled Tuesday Blitz August 17 2021"]
[White "Bortnyk, Olexandr"]
[Black "Garriga Cazorla, Pere"]
[WhiteFideId "14120828"]
[BlackFideId "32011601"]
[WhiteElo "2723"]
[BlackElo "2430"]
[Result "1-0"]
[Round "03"]
[TimeControl "180+1"]
[Date "2021.08.17"]
[WhiteClock "0:00:03"]
[BlackClock "0:00:18"]

1. e4 {[%clk 0:02:52]}  c5 {[%clk 0:02:57]} 2. c3 {[%clk 0:02:51]}  Nf6 {[%clk 0:02:57]} 3. e5 {[%clk 0:02:51]}  Nd5 {[%clk 0:02:58]} 4. d4 {[%clk 0:02:51]}  cxd4 {[%clk 0:02:59]} 5. Nf3 {[%clk 0:02:52]}  d6 {[%clk 0:02:58]} 6. cxd4 {[%clk 0:02:51]}  Nc6 {[%clk 0:02:59]} 7. Bc4 {[%clk 0:02:51]}  e6 {[%clk 0:02:58]} 8. O-O {[%clk 0:02:49]}  Be7 {[%clk 0:02:57]} 9. Qe2 {[%clk 0:02:49]}  O-O {[%clk 0:02:56]} 10. Rd1 {[%clk 0:02:49]}  b6 {[%clk 0:02:50]} 11. Nc3 {[%clk 0:02:47]}  Nxc3 {[%clk 0:02:50]} 12. bxc3 {[%clk 0:02:48]}  dxe5 {[%clk 0:02:46]} 13. dxe5 {[%clk 0:02:29]}  Qc7 {[%clk 0:02:46]} 14. Bd3 {[%clk 0:02:25]}  Bb7 {[%clk 0:02:46]} 15. h4 {[%clk 0:02:09]}  Rfd8 {[%clk 0:02:40]} 16. Bf4 {[%clk 0:01:55]}  Rd7 {[%clk 0:02:34]} 17. Qe4 {[%clk 0:01:34]}  g6 {[%clk 0:02:33]} 18. Qe2 {[%clk 0:01:17]}  Rad8 {[%clk 0:02:21]} 19. h5 {[%clk 0:01:14]}  Na5 {[%clk 0:01:54]} 20. Rac1 {[%clk 0:01:03]}  Nc4 {[%clk 0:01:37]} 21. Nd4 {[%clk 0:00:37]}  b5 {[%clk 0:01:13]} 22. Qg4 {[%clk 0:00:34]}  Nxe5 {[%clk 0:00:57]} 23. Qg3 {[%clk 0:00:34]}  Bd6 {[%clk 0:00:44]} 24. hxg6 {[%clk 0:00:31]}  Nxg6 {[%clk 0:00:27]} 25. Bxd6 {[%clk 0:00:25]}  Qxd6 {[%clk 0:00:28]} 26. Bxb5 {[%clk 0:00:22]}  Qxg3 {[%clk 0:00:24]} 27. fxg3 {[%clk 0:00:23]}  Rd6 {[%clk 0:00:24]} 28. Re1 {[%clk 0:00:21]}  Rc8 {[%clk 0:00:20]} 29. a4 {[%clk 0:00:21]}  a6 {[%clk 0:00:20]} 30. Bf1 {[%clk 0:00:21]}  Kg7 {[%clk 0:00:20]} 31. Nb3 {[%clk 0:00:14]}  Rc7 {[%clk 0:00:20]} 32. c4 {[%clk 0:00:14]}  Rb6 {[%clk 0:00:20]} 33. Rc3 {[%clk 0:00:13]}  Rb4 {[%clk 0:00:20]} 34. a5 {[%clk 0:00:10]}  Ne7 {[%clk 0:00:21]} 35. Rec1 {[%clk 0:00:08]}  Bc6 {[%clk 0:00:19]} 36. g4 {[%clk 0:00:08]}  Bb7 {[%clk 0:00:19]} 37. Be2 {[%clk 0:00:07]}  Ng6 {[%clk 0:00:19]} 38. Kf2 {[%clk 0:00:07]}  Ne5 {[%clk 0:00:20]} 39. Nd2 {[%clk 0:00:04]}  h6 {[%clk 0:00:20]} 40. R1c2 {[%clk 0:00:04]}  Ra4 {[%clk 0:00:19]} 41. Nb3 {[%clk 0:00:04]}  Nc6 {[%clk 0:00:20]} 42. Nc5 {[%clk 0:00:04]}  Rxa5 {[%clk 0:00:20]} 43. Nxb7 {[%clk 0:00:04]}  Rxb7 {[%clk 0:00:21]} 44. Bf3 {[%clk 0:00:05]}  Rc7 {[%clk 0:00:21]} 45. Rd2 {[%clk 0:00:05]}  Ne5 {[%clk 0:00:21]} 46. Be2 {[%clk 0:00:04]}  Rac5 {[%clk 0:00:22]} 47. Rd4 {[%clk 0:00:04]}  a5 {[%clk 0:00:22]} 48. Re4 {[%clk 0:00:05]}  Nc6 {[%clk 0:00:22]} 49. Ra3 {[%clk 0:00:05]}  Nb4 {[%clk 0:00:23]} 50. Ra1 {[%clk 0:00:03]}  Rd7 {[%clk 0:00:23]} 51. Ra3 {[%clk 0:00:02]}  Rd2 {[%clk 0:00:23]} 52. Ra4 {[%clk 0:00:02]}  Rb2 {[%clk 0:00:22]} 53. Kg3 {[%clk 0:00:02]}  Nc6 {[%clk 0:00:21]} 54. Bf3 {[%clk 0:00:02]}  Ne5 {[%clk 0:00:21]} 55. Be2 {[%clk 0:00:03]}  Kf6 {[%clk 0:00:21]} 56. Ra3 {[%clk 0:00:03]}  Kg5 {[%clk 0:00:21]} 57. Ra4 {[%clk 0:00:03]}  Rb3+ {[%clk 0:00:21]} 58. Kf2 {[%clk 0:00:03]}  f5 {[%clk 0:00:19]} 59. gxf5 {[%clk 0:00:03]}  exf5 {[%clk 0:00:20]} 60. Rd4 {[%clk 0:00:04]}  Rb2 {[%clk 0:00:20]} 61. Rd5 {[%clk 0:00:04]}  Rxc4 {[%clk 0:00:20]} 62. Raxa5 {[%clk 0:00:03]}  Ng4+ {[%clk 0:00:19]} 63. Ke1 {[%clk 0:00:02]}  Re4 {[%clk 0:00:18]} 64. Rxf5+ {[%clk 0:00:02]}  Kh4 {[%clk 0:00:19]} 65. Rh5+ {[%clk 0:00:02]}  Kg3 {[%clk 0:00:19]} 66. Kf1 {[%clk 0:00:02]}  Rbxe2 {[%clk 0:00:18]} 67. Rh3+ {[%clk 0:00:02]}  Kf4 {[%clk 0:00:18]} 68. Rf3# {[%clk 0:00:03]} 1-0


[Site "https://www.chess.com"]